[Event "Titled Tuesday Blitz June 13 Early 2023"]
[White "Pastar, Slaven"]
[Black "Talibov, Shiroghlan"]
[WhiteFideId "14402718"]
[BlackFideId "13429078"]
[WhiteElo "2219"]
[BlackElo "2274"]
[Result "0-1"]
[Round "3"]
[TimeControl "180+2"]
[Date "2023.06.13"]
[WhiteClock "0:00:02"]
[BlackClock "0:00:02"]
[Board "54"]

1. b3 {[%clk 0:03:00]}  a5 {[%clk 0:02:43]} 2. Bb2 {[%clk 0:03:01]}  a4 {[%clk 0:02:43]} 3. b4 {[%clk 0:03:02]}  d5 {[%clk 0:02:41]} 4. e3 {[%clk 0:03:01]}  Nf6 {[%clk 0:02:33]} 5. a3 {[%clk 0:03:01]}  Bf5 {[%clk 0:02:33]} 6. Nf3 {[%clk 0:03:01]}  c6 {[%clk 0:02:31]} 7. c4 {[%clk 0:03:01]}  e6 {[%clk 0:02:25]} 8. Nc3 {[%clk 0:02:59]}  Nbd7 {[%clk 0:02:26]} 9. cxd5 {[%clk 0:02:57]}  exd5 {[%clk 0:02:26]} 10. Nxa4 {[%clk 0:02:53]}  Bd6 {[%clk 0:02:27]} 11. Be2 {[%clk 0:02:48]}  O-O {[%clk 0:02:25]} 12. O-O {[%clk 0:02:47]}  Re8 {[%clk 0:02:25]} 13. Qb3 {[%clk 0:02:34]}  Ne4 {[%clk 0:02:11]} 14. d3 {[%clk 0:02:24]}  Ng5 {[%clk 0:02:10]} 15. Rfc1 {[%clk 0:02:06]}  Nxf3+ {[%clk 0:02:01]} 16. Bxf3 {[%clk 0:02:07]}  Ne5 {[%clk 0:01:55]} 17. Bxe5 {[%clk 0:02:05]}  Bxe5 {[%clk 0:01:56]} 18. d4 {[%clk 0:02:06]}  Bd6 {[%clk 0:01:53]} 19. Nc5 {[%clk 0:02:04]}  Ra7 {[%clk 0:01:51]} 20. b5 {[%clk 0:01:58]}  Qe7 {[%clk 0:01:43]} 21. g3 {[%clk 0:01:43]}  g6 {[%clk 0:01:18]} 22. a4 {[%clk 0:01:42]}  Rea8 {[%clk 0:01:13]} 23. bxc6 {[%clk 0:01:38]}  bxc6 {[%clk 0:01:12]} 24. Qb6 {[%clk 0:01:34]}  Qe8 {[%clk 0:01:07]} 25. Qb3 {[%clk 0:00:45]}  h5 {[%clk 0:01:05]} 26. Qc3 {[%clk 0:00:34]}  Kg7 {[%clk 0:00:58]} 27. h4 {[%clk 0:00:32]}  f6 {[%clk 0:00:48]} 28. a5 {[%clk 0:00:31]}  g5 {[%clk 0:00:47]} 29. hxg5 {[%clk 0:00:31]}  fxg5 {[%clk 0:00:45]} 30. Nd3 {[%clk 0:00:30]}  g4 {[%clk 0:00:39]} 31. Bg2 {[%clk 0:00:28]}  h4 {[%clk 0:00:39]} 32. gxh4 {[%clk 0:00:24]}  g3 {[%clk 0:00:32]} 33. Ne5 {[%clk 0:00:21]}  gxf2+ {[%clk 0:00:30]} 34. Kxf2 {[%clk 0:00:22]}  Qe7 {[%clk 0:00:30]} 35. Rh1 {[%clk 0:00:20]}  Rf8 {[%clk 0:00:25]} 36. Ke2 {[%clk 0:00:14]}  Qb7 {[%clk 0:00:16]} 37. Bf3 {[%clk 0:00:10]}  Qb5+ {[%clk 0:00:15]} 38. Kf2 {[%clk 0:00:04]}  Bxe5 {[%clk 0:00:09]} 39. dxe5 {[%clk 0:00:04]}  Be4 {[%clk 0:00:09]} 40. Rh3 {[%clk 0:00:04]}  Kh7 {[%clk 0:00:07]} 41. Rg3 {[%clk 0:00:04]}  Raf7 {[%clk 0:00:05]} 42. e6 {[%clk 0:00:03]}  Rxf3+ {[%clk 0:00:05]} 43. Rxf3 {[%clk 0:00:02]}  Rxf3+ {[%clk 0:00:06]} 44. Kg1 {[%clk 0:00:02]}  Qe2 {[%clk 0:00:04]} 45. Qe5 {[%clk 0:00:01]}  Qf2+ {[%clk 0:00:01]} 46. Kh1 {[%clk 0:00:02]}  Rh3# {[%clk 0:00:02]} 0-1


[Site "https://www.chess.com"]

[Event "Titled Tuesday Blitz June 13 Early 2023"]
[White "Girya, Olga"]
[Black "Vignesh N R"]
[WhiteFideId "4195752"]
[BlackFideId "25012215"]
[WhiteElo "2263"]
[BlackElo "2415"]
[Result "0-1"]
[Round "3"]
[TimeControl "180+2"]
[Date "2023.06.13"]
[WhiteClock "0:00:00"]
[BlackClock "0:00:57"]
[Board "55"]

1. d4 {[%clk 0:03:00]}  Nf6 {[%clk 0:02:58]} 2. Nf3 {[%clk 0:03:00]}  d5 {[%clk 0:02:58]} 3. c4 {[%clk 0:03:00]}  c6 {[%clk 0:02:58]} 4. Qb3 {[%clk 0:02:58]}  g6 {[%clk 0:02:56]} 5. Nc3 {[%clk 0:02:42]}  Bg7 {[%clk 0:02:53]} 6. Bg5 {[%clk 0:02:34]}  dxc4 {[%clk 0:02:45]} 7. Qxc4 {[%clk 0:02:35]}  O-O {[%clk 0:02:42]} 8. e3 {[%clk 0:02:24]}  b5 {[%clk 0:02:38]} 9. Qb3 {[%clk 0:02:10]}  Be6 {[%clk 0:02:32]} 10. Qc2 {[%clk 0:02:09]}  Nbd7 {[%clk 0:02:26]} 11. Be2 {[%clk 0:02:04]}  a5 {[%clk 0:02:25]} 12. O-O {[%clk 0:02:03]}  Qb6 {[%clk 0:02:18]} 13. Rfd1 {[%clk 0:01:58]}  Rfc8 {[%clk 0:02:14]} 14. Rac1 {[%clk 0:01:58]}  h6 {[%clk 0:02:14]} 15. Bh4 {[%clk 0:01:55]}  a4 {[%clk 0:02:13]} 16. Rd2 {[%clk 0:01:33]}  g5 {[%clk 0:01:57]} 17. Bg3 {[%clk 0:01:32]}  Nd5 {[%clk 0:01:57]} 18. Nxd5 {[%clk 0:01:02]}  Bxd5 {[%clk 0:01:56]} 19. b4 {[%clk 0:00:32]}  axb3 {[%clk 0:01:48]} 20. axb3 {[%clk 0:00:33]}  c5 {[%clk 0:01:39]} 21. e4 {[%clk 0:00:29]}  Bb7 {[%clk 0:01:38]} 22. d5 {[%clk 0:00:26]}  c4 {[%clk 0:01:33]} 23. bxc4 {[%clk 0:00:24]}  bxc4 {[%clk 0:01:34]} 24. Rb1 {[%clk 0:00:23]}  Qxb1+ {[%clk 0:01:16]} 25. Qxb1 {[%clk 0:00:22]}  Ra1 {[%clk 0:01:17]} 26. Qxa1 {[%clk 0:00:09]}  Bxa1 {[%clk 0:01:18]} 27. Rd1 {[%clk 0:00:08]}  Bb2 {[%clk 0:01:16]} 28. Nd4 {[%clk 0:00:01]}  c3 {[%clk 0:01:06]} 29. Nc2 {[%clk 0:00:01]}  Nc5 {[%clk 0:01:00]} 30. f3 {[%clk 0:00:00]}  Ba6 {[%clk 0:00:57]} 0-1


[Site "https://www.chess.com"]

[Event "Titled Tuesday Blitz June 13 Early 2023"]
[White "Milikow, Yoav"]
[Black "Shukhman, Anna"]
[WhiteFideId "2822237"]
[BlackFideId "54180058"]
[WhiteElo "2410"]
[BlackElo "2235"]
[Result "1/2-1/2"]
[Round "3"]
[TimeControl "180+2"]
[Date "2023.06.13"]
[WhiteClock "0:00:10"]
[BlackClock "0:00:12"]
[Board "58"]

1. d4 {[%clk 0:02:58]}  Nf6 {[%clk 0:02:59]} 2. c4 {[%clk 0:02:57]}  g6 {[%clk 0:02:59]} 3. Nc3 {[%clk 0:02:53]}  d5 {[%clk 0:02:59]} 4. cxd5 {[%clk 0:02:47]}  Nxd5 {[%clk 0:03:00]} 5. e4 {[%clk 0:02:47]}  Nxc3 {[%clk 0:02:58]} 6. bxc3 {[%clk 0:02:48]}  Bg7 {[%clk 0:02:58]} 7. Qa4+ {[%clk 0:02:48]}  c6 {[%clk 0:02:57]} 8. Nf3 {[%clk 0:02:45]}  O-O {[%clk 0:02:56]} 9. Be2 {[%clk 0:02:42]}  b5 {[%clk 0:02:56]} 10. Qa3 {[%clk 0:02:41]}  Nd7 {[%clk 0:02:54]} 11. O-O {[%clk 0:02:40]}  a5 {[%clk 0:02:54]} 12. Bg5 {[%clk 0:02:37]}  Nf6 {[%clk 0:02:49]} 13. Bd3 {[%clk 0:02:33]}  Be6 {[%clk 0:02:42]} 14. Rad1 {[%clk 0:02:16]}  Qc7 {[%clk 0:02:33]} 15. Rfe1 {[%clk 0:02:04]}  Bg4 {[%clk 0:02:30]} 16. e5 {[%clk 0:01:53]}  Nd5 {[%clk 0:02:24]} 17. Be4 {[%clk 0:01:49]}  b4 {[%clk 0:02:23]} 18. cxb4 {[%clk 0:01:48]}  axb4 {[%clk 0:02:24]} 19. Qb2 {[%clk 0:01:22]}  Nc3 {[%clk 0:02:04]} 20. Rc1 {[%clk 0:01:22]}  Rxa2 {[%clk 0:01:59]} 21. Qxb4 {[%clk 0:01:21]}  Ne2+ {[%clk 0:01:56]} 22. Rxe2 {[%clk 0:01:22]}  Rxe2 {[%clk 0:01:56]} 23. Bxc6 {[%clk 0:01:10]}  Bxf3 {[%clk 0:01:54]} 24. Bxf3 {[%clk 0:00:58]}  Rc2 {[%clk 0:01:54]} 25. Rxc2 {[%clk 0:00:53]}  Qxc2 {[%clk 0:01:55]} 26. g3 {[%clk 0:00:46]}  e6 {[%clk 0:01:53]} 27. Kg2 {[%clk 0:00:44]}  Rc8 {[%clk 0:01:28]} 28. Qb7 {[%clk 0:00:39]}  h6 {[%clk 0:01:20]} 29. Be3 {[%clk 0:00:38]}  Qc7 {[%clk 0:01:15]} 30. Qe4 {[%clk 0:00:35]}  Qa5 {[%clk 0:01:08]} 31. h4 {[%clk 0:00:33]}  h5 {[%clk 0:01:08]} 32. Qb7 {[%clk 0:00:31]}  Qc7 {[%clk 0:01:04]} 33. Qe4 {[%clk 0:00:30]}  Qa5 {[%clk 0:01:03]} 34. Qb7 {[%clk 0:00:30]}  Rc2 {[%clk 0:00:46]} 35. Be4 {[%clk 0:00:20]}  Ra2 {[%clk 0:00:45]} 36. Qc8+ {[%clk 0:00:17]}  Kh7 {[%clk 0:00:45]} 37. Qd7 {[%clk 0:00:13]}  Kg8 {[%clk 0:00:28]} 38. Qe8+ {[%clk 0:00:10]}  Bf8 {[%clk 0:00:28]} 39. Bxg6 {[%clk 0:00:09]}  Qd5+ {[%clk 0:00:19]} 40. Kh2 {[%clk 0:00:08]}  fxg6 {[%clk 0:00:19]} 41. Qxg6+ {[%clk 0:00:09]}  Bg7 {[%clk 0:00:18]} 42. Qe8+ {[%clk 0:00:09]}  Bf8 {[%clk 0:00:18]} 43. Qg6+ {[%clk 0:00:09]}  Kh8 {[%clk 0:00:12]} 44. Qxh5+ {[%clk 0:00:09]}  Kg8 {[%clk 0:00:11]} 45. Qg6+ {[%clk 0:00:09]}  Bg7 {[%clk 0:00:12]} 46. Qe8+ {[%clk 0:00:09]}  Bf8 {[%clk 0:00:12]} 47. Qg6+ {[%clk 0:00:09]}  Bg7 {[%clk 0:00:12]} 48. Qe8+ {[%clk 0:00:09]}  Bf8 {[%clk 0:00:12]} 49. Qg6+ {[%clk 0:00:10]} 1/2-1/2


[Site "https://www.chess.com"]

[Event "Titled Tuesday Blitz June 13 Early 2023"]
[White "Aradhya, Garg"]
[Black "Vovk, Orest"]
[WhiteFideId "25006746"]
[BlackFideId "14113490"]
[WhiteElo "2263"]
[BlackElo "2215"]
[Result "1/2-1/2"]
[Round "3"]
[TimeControl "180+2"]
[Date "2023.06.13"]
[WhiteClock "0:01:22"]
[BlackClock "0:00:08"]
[Board "59"]

1. d4 {[%clk 0:03:00]}  h6 {[%clk 0:02:57]} 2. e4 {[%clk 0:03:00]}  g5 {[%clk 0:02:56]} 3. h4 {[%clk 0:03:00]}  g4 {[%clk 0:02:56]} 4. Qxg4 {[%clk 0:02:52]}  d5 {[%clk 0:02:56]} 5. Qe2 {[%clk 0:02:52]}  dxe4 {[%clk 0:02:56]} 6. Nc3 {[%clk 0:02:52]}  Qxd4 {[%clk 0:02:51]} 7. Qxe4 {[%clk 0:02:52]}  Qxe4+ {[%clk 0:02:51]} 8. Nxe4 {[%clk 0:02:53]}  Bg7 {[%clk 0:02:51]} 9. Nf3 {[%clk 0:02:49]}  Nf6 {[%clk 0:02:51]} 10. Nxf6+ {[%clk 0:02:48]}  Bxf6 {[%clk 0:02:51]} 11. c3 {[%clk 0:02:49]}  Nc6 {[%clk 0:02:50]} 12. Bf4 {[%clk 0:02:49]}  e5 {[%clk 0:02:49]} 13. Be3 {[%clk 0:02:49]}  Bg4 {[%clk 0:02:48]} 14. Nd2 {[%clk 0:02:44]}  O-O-O {[%clk 0:02:45]} 15. f3 {[%clk 0:02:44]}  Be6 {[%clk 0:02:41]} 16. g4 {[%clk 0:02:44]}  Be7 {[%clk 0:02:38]} 17. Bc4 {[%clk 0:02:37]}  Bxc4 {[%clk 0:02:30]} 18. Nxc4 {[%clk 0:02:38]}  f5 {[%clk 0:02:26]} 19. gxf5 {[%clk 0:02:36]}  Rdf8 {[%clk 0:02:25]} 20. Ke2 {[%clk 0:02:33]}  Rxf5 {[%clk 0:02:25]} 21. Raf1 {[%clk 0:02:31]}  Rh5 {[%clk 0:02:22]} 22. f4 {[%clk 0:02:30]}  exf4 {[%clk 0:02:14]} 23. Rxf4 {[%clk 0:02:31]}  Re8 {[%clk 0:02:08]} 24. Re4 {[%clk 0:02:27]}  Rg8 {[%clk 0:02:03]} 25. Rh2 {[%clk 0:02:22]}  b5 {[%clk 0:01:59]} 26. Nd2 {[%clk 0:02:21]}  Bd6 {[%clk 0:01:55]} 27. Rf2 {[%clk 0:02:21]}  Ne5 {[%clk 0:01:46]} 28. a4 {[%clk 0:02:13]}  a6 {[%clk 0:01:42]} 29. axb5 {[%clk 0:02:13]}  axb5 {[%clk 0:01:43]} 30. Nf3 {[%clk 0:02:12]}  Nxf3 {[%clk 0:01:30]} 31. Rxf3 {[%clk 0:02:13]}  Rg2+ {[%clk 0:01:25]} 32. Rf2 {[%clk 0:02:13]}  Rxf2+ {[%clk 0:01:22]} 33. Bxf2 {[%clk 0:02:13]}  Rf5 {[%clk 0:01:16]} 34. Re8+ {[%clk 0:01:59]}  Kd7 {[%clk 0:01:12]} 35. Rh8 {[%clk 0:01:59]}  h5 {[%clk 0:01:12]} 36. Be3 {[%clk 0:01:57]}  Be7 {[%clk 0:01:06]} 37. Bf2 {[%clk 0:01:47]}  c5 {[%clk 0:00:59]} 38. Rh7 {[%clk 0:01:46]}  c4 {[%clk 0:00:56]} 39. Be3 {[%clk 0:01:40]}  Ke6 {[%clk 0:00:54]} 40. Bf2 {[%clk 0:01:38]}  Bf6 {[%clk 0:00:49]} 41. Ra7 {[%clk 0:01:33]}  b4 {[%clk 0:00:43]} 42. Rc7 {[%clk 0:01:19]}  bxc3 {[%clk 0:00:36]} 43. bxc3 {[%clk 0:01:20]}  Rf4 {[%clk 0:00:34]} 44. Bd4 {[%clk 0:01:18]}  Bxd4 {[%clk 0:00:31]} 45. Rxc4 {[%clk 0:01:17]}  Be5 {[%clk 0:00:28]} 46. Rxf4 {[%clk 0:01:17]}  Bxf4 {[%clk 0:00:28]} 47. Kf3 {[%clk 0:01:18]}  Kf5 {[%clk 0:00:25]} 48. c4 {[%clk 0:01:18]}  Be5 {[%clk 0:00:20]} 49. c5 {[%clk 0:01:18]}  Bb8 {[%clk 0:00:19]} 50. c6 {[%clk 0:01:18]}  Bc7 {[%clk 0:00:19]} 51. Kg2 {[%clk 0:01:18]}  Kg4 {[%clk 0:00:18]} 52. Kh1 {[%clk 0:01:18]}  Kg3 {[%clk 0:00:16]} 53. Kg1 {[%clk 0:01:18]}  Kxh4 {[%clk 0:00:15]} 54. Kg2 {[%clk 0:01:18]}  Kg4 {[%clk 0:00:15]} 55. Kh1 {[%clk 0:01:18]}  h4 {[%clk 0:00:13]} 56. Kg2 {[%clk 0:01:18]}  h3+ {[%clk 0:00:13]} 57. Kh1 {[%clk 0:01:19]}  Kf5 {[%clk 0:00:11]} 58. Kg1 {[%clk 0:01:18]}  Ke6 {[%clk 0:00:11]} 59. Kh1 {[%clk 0:01:19]}  Kd5 {[%clk 0:00:12]} 60. Kg1 {[%clk 0:01:19]}  Kxc6 {[%clk 0:00:10]} 61. Kh1 {[%clk 0:01:20]}  Kd5 {[%clk 0:00:11]} 62. Kg1 {[%clk 0:01:20]}  Ke4 {[%clk 0:00:11]} 63. Kh1 {[%clk 0:01:21]}  Kf3 {[%clk 0:00:10]} 64. Kg1 {[%clk 0:01:21]}  Kg3 {[%clk 0:00:09]} 65. Kh1 {[%clk 0:01:22]}  Bb6 {[%clk 0:00:08]} 1/2-1/2


[Site "https://www.chess.com"]

[Event "Titled Tuesday Blitz June 13 Early 2023"]
[White "Hajiyev, Kanan"]
[Black "Shuvalova, Polina"]
[WhiteFideId "13404148"]
[BlackFideId "24171760"]
[WhiteElo "2115"]
[BlackElo "2281"]
[Result "1-0"]
[Round "3"]
[TimeControl "180+2"]
[Date "2023.06.13"]
[WhiteClock "0:00:34"]
[BlackClock "0:00:41"]
[Board "60"]

1. d4 {[%clk 0:03:00]}  Nf6 {[%clk 0:02:59]} 2. Nf3 {[%clk 0:03:00]}  e6 {[%clk 0:02:59]} 3. c4 {[%clk 0:03:00]}  d5 {[%clk 0:02:59]} 4. cxd5 {[%clk 0:03:01]}  exd5 {[%clk 0:02:59]} 5. Nc3 {[%clk 0:03:02]}  c5 {[%clk 0:02:57]} 6. g3 {[%clk 0:02:38]}  Nc6 {[%clk 0:02:56]} 7. Bg2 {[%clk 0:02:38]}  cxd4 {[%clk 0:02:57]} 8. Nxd4 {[%clk 0:02:38]}  Bc5 {[%clk 0:02:57]} 9. Nb3 {[%clk 0:02:36]}  Bb6 {[%clk 0:02:57]} 10. O-O {[%clk 0:02:35]}  d4 {[%clk 0:02:56]} 11. Na4 {[%clk 0:02:32]}  O-O {[%clk 0:02:56]} 12. Nxb6 {[%clk 0:02:13]}  axb6 {[%clk 0:02:49]} 13. Bg5 {[%clk 0:02:08]}  Re8 {[%clk 0:02:47]} 14. e3 {[%clk 0:01:54]}  d3 {[%clk 0:02:41]} 15. Bxf6 {[%clk 0:01:37]}  gxf6 {[%clk 0:02:42]} 16. Qd2 {[%clk 0:01:27]}  Bf5 {[%clk 0:02:12]} 17. Rfc1 {[%clk 0:01:21]}  Qd6 {[%clk 0:02:07]} 18. Rc3 {[%clk 0:01:14]}  Ra4 {[%clk 0:02:03]} 19. a3 {[%clk 0:01:10]}  Bg6 {[%clk 0:01:54]} 20. Rd1 {[%clk 0:01:09]}  Bh5 {[%clk 0:01:41]} 21. Qxd3 {[%clk 0:01:04]}  Qe6 {[%clk 0:01:36]} 22. Rdc1 {[%clk 0:00:57]}  Ne5 {[%clk 0:01:11]} 23. Qb5 {[%clk 0:00:48]}  Raa8 {[%clk 0:01:10]} 24. Nd4 {[%clk 0:00:45]}  Qd6 {[%clk 0:00:53]} 25. f4 {[%clk 0:00:39]}  Ra5 {[%clk 0:00:43]} 26. Qxe8+ {[%clk 0:00:37]}  Kg7 {[%clk 0:00:41]} 27. Nf5+ {[%clk 0:00:34]} 1-0


[Site "https://www.chess.com"]

[Event "Titled Tuesday Blitz June 13 Early 2023"]
[White "Starozhilov, Leonid"]
[Black "Fieberg, Samuel"]
[WhiteFideId "14106752"]
[BlackFideId "12901717"]
[WhiteElo "2352"]
[BlackElo "2545"]
[Result "1/2-1/2"]
[Round "3"]
[TimeControl "180+2"]
[Date "2023.06.13"]
[WhiteClock "0:00:25"]
[BlackClock "0:00:17"]
[Board "61"]

1. e4 {[%clk 0:03:00]}  e6 {[%clk 0:02:59]} 2. d4 {[%clk 0:03:00]}  d5 {[%clk 0:03:00]} 3. Nc3 {[%clk 0:02:58]}  Nf6 {[%clk 0:02:59]} 4. Bg5 {[%clk 0:02:58]}  dxe4 {[%clk 0:02:59]} 5. Nxe4 {[%clk 0:02:57]}  Be7 {[%clk 0:03:00]} 6. Nxf6+ {[%clk 0:02:55]}  Bxf6 {[%clk 0:02:59]} 7. Bxf6 {[%clk 0:02:55]}  Qxf6 {[%clk 0:03:00]} 8. Nf3 {[%clk 0:02:55]}  c5 {[%clk 0:03:00]} 9. c3 {[%clk 0:02:55]}  cxd4 {[%clk 0:02:56]} 10. Qxd4 {[%clk 0:02:55]}  Qxd4 {[%clk 0:02:55]} 11. Nxd4 {[%clk 0:02:56]}  Bd7 {[%clk 0:02:55]} 12. O-O-O {[%clk 0:02:53]}  a6 {[%clk 0:02:53]} 13. Be2 {[%clk 0:02:51]}  Nc6 {[%clk 0:02:52]} 14. Bf3 {[%clk 0:02:51]}  O-O-O {[%clk 0:02:39]} 15. Rd2 {[%clk 0:02:21]}  Nxd4 {[%clk 0:02:24]} 16. Rxd4 {[%clk 0:02:22]}  e5 {[%clk 0:02:11]} 17. Rd5 {[%clk 0:02:13]}  f6 {[%clk 0:02:02]} 18. Rhd1 {[%clk 0:02:11]}  b6 {[%clk 0:01:41]} 19. Rxd7 {[%clk 0:01:18]}  Rxd7 {[%clk 0:01:42]} 20. Bg4 {[%clk 0:01:19]}  Rd8 {[%clk 0:01:42]} 21. Kc2 {[%clk 0:01:18]}  Kc7 {[%clk 0:01:42]} 22. Rxd7+ {[%clk 0:01:18]}  Rxd7 {[%clk 0:01:43]} 23. Bxd7 {[%clk 0:01:18]}  Kxd7 {[%clk 0:01:44]} 24. c4 {[%clk 0:01:16]}  Kd6 {[%clk 0:01:29]} 25. Kd3 {[%clk 0:01:16]}  f5 {[%clk 0:01:28]} 26. f3 {[%clk 0:01:16]}  Kc5 {[%clk 0:01:20]} 27. Kc3 {[%clk 0:01:07]}  a5 {[%clk 0:01:05]} 28. b3 {[%clk 0:01:07]}  Kd6 {[%clk 0:00:30]} 29. a3 {[%clk 0:00:59]}  Kc6 {[%clk 0:00:23]} 30. b4 {[%clk 0:00:56]}  axb4+ {[%clk 0:00:24]} 31. axb4 {[%clk 0:00:56]}  Kd6 {[%clk 0:00:22]} 32. Kd3 {[%clk 0:00:50]}  Kc6 {[%clk 0:00:20]} 33. Ke3 {[%clk 0:00:39]}  Kd6 {[%clk 0:00:19]} 34. g3 {[%clk 0:00:29]}  Ke6 {[%clk 0:00:18]} 35. Kd3 {[%clk 0:00:25]}  Kd6 {[%clk 0:00:18]} 36. Ke3 {[%clk 0:00:24]}  Ke6 {[%clk 0:00:18]} 37. Kd3 {[%clk 0:00:25]}  Kd6 {[%clk 0:00:17]} 38. Ke3 {[%clk 0:00:25]} 1/2-1/2


[Site "https://www.chess.com"]

[Event "Titled Tuesday Blitz June 13 Early 2023"]
[White "Santos Flores, Alberto"]
[Black "Liyanage, Ranindu Dilshan"]
[WhiteFideId "3601234"]
[BlackFideId "9915834"]
[WhiteElo "2235"]
[BlackElo "2216"]
[Result "0-1"]
[Round "3"]
[TimeControl "180+2"]
[Date "2023.06.13"]
[WhiteClock "0:00:00"]
[BlackClock "0:00:04"]
[Board "63"]

1. e4 {[%clk 0:03:00]}  c5 {[%clk 0:02:57]} 2. Nf3 {[%clk 0:03:00]}  a6 {[%clk 0:02:57]} 3. g3 {[%clk 0:02:52]}  b5 {[%clk 0:02:54]} 4. Bg2 {[%clk 0:02:52]}  Bb7 {[%clk 0:02:55]} 5. Qe2 {[%clk 0:02:52]}  e6 {[%clk 0:02:48]} 6. O-O {[%clk 0:02:51]}  d6 {[%clk 0:02:47]} 7. c3 {[%clk 0:02:51]}  Nf6 {[%clk 0:02:46]} 8. d3 {[%clk 0:02:50]}  Be7 {[%clk 0:02:46]} 9. h4 {[%clk 0:02:46]}  Nbd7 {[%clk 0:02:44]} 10. Nbd2 {[%clk 0:02:40]}  Rc8 {[%clk 0:02:42]} 11. d4 {[%clk 0:02:33]}  cxd4 {[%clk 0:02:38]} 12. cxd4 {[%clk 0:02:34]}  Nb6 {[%clk 0:02:36]} 13. e5 {[%clk 0:02:30]}  dxe5 {[%clk 0:02:26]} 14. dxe5 {[%clk 0:02:31]}  Ng4 {[%clk 0:02:23]} 15. Ne4 {[%clk 0:02:23]}  Nc4 {[%clk 0:02:11]} 16. Bf4 {[%clk 0:02:21]}  Qb6 {[%clk 0:02:08]} 17. b3 {[%clk 0:02:13]}  Na5 {[%clk 0:01:58]} 18. Nfg5 {[%clk 0:01:46]}  Nh6 {[%clk 0:01:47]} 19. Rad1 {[%clk 0:01:39]}  Nf5 {[%clk 0:01:43]} 20. Nd6+ {[%clk 0:01:17]}  Bxd6 {[%clk 0:01:36]} 21. exd6 {[%clk 0:01:18]}  O-O {[%clk 0:01:36]} 22. Bxb7 {[%clk 0:00:58]}  Nxb7 {[%clk 0:01:34]} 23. h5 {[%clk 0:00:47]}  h6 {[%clk 0:01:30]} 24. Ne4 {[%clk 0:00:46]}  Rcd8 {[%clk 0:01:30]} 25. Qd2 {[%clk 0:00:24]}  Rd7 {[%clk 0:01:22]} 26. Bxh6 {[%clk 0:00:20]}  Nxh6 {[%clk 0:01:21]} 27. Nf6+ {[%clk 0:00:18]}  gxf6 {[%clk 0:01:16]} 28. Qxh6 {[%clk 0:00:19]}  Qc5 {[%clk 0:01:09]} 29. Qxf6 {[%clk 0:00:15]}  Qxh5 {[%clk 0:01:08]} 30. Kg2 {[%clk 0:00:16]}  Qg6 {[%clk 0:00:46]} 31. Qf4 {[%clk 0:00:14]}  Nc5 {[%clk 0:00:41]} 32. f3 {[%clk 0:00:13]}  Rfd8 {[%clk 0:00:29]} 33. Rh1 {[%clk 0:00:11]}  Qg7 {[%clk 0:00:20]} 34. Rh4 {[%clk 0:00:10]}  e5 {[%clk 0:00:17]} 35. Qf5 {[%clk 0:00:09]}  Rxd6 {[%clk 0:00:11]} 36. Rg4 {[%clk 0:00:10]}  Rxd1 {[%clk 0:00:09]} 37. Rxg7+ {[%clk 0:00:10]}  Kxg7 {[%clk 0:00:10]} 38. Qxe5+ {[%clk 0:00:10]}  f6 {[%clk 0:00:07]} 39. Qxc5 {[%clk 0:00:10]}  R1d2+ {[%clk 0:00:08]} 40. Kh3 {[%clk 0:00:11]}  Kg6 {[%clk 0:00:08]} 41. Kg4 {[%clk 0:00:10]}  R2d5 {[%clk 0:00:06]} 42. Qe7 {[%clk 0:00:09]}  f5+ {[%clk 0:00:05]} 43. Kf4 {[%clk 0:00:08]}  Rd4+ {[%clk 0:00:04]} 44. Ke3 {[%clk 0:00:07]}  Rd3+ {[%clk 0:00:04]} 45. Kf4 {[%clk 0:00:06]}  R8d4+ {[%clk 0:00:04]} 46. Ke5 {[%clk 0:00:00]}  Re3+ {[%clk 0:00:04]} 0-1


[Site "https://www.chess.com"]